fUSD/lending_fUSD_20260528
["ID","MTS","AMOUNT","RATE_DAILY","PERIOD"]
[423230739,1779963039000,-2000.0,0.00015645,2]
[423230738,1779963039000,-200.0,0.00015609,2]
[423230740,1779963039000,-4410.73307623,0.000157,2]
[423230747,1779963039000,-152.00773521,0.000159,2]
[423230748,1779963039000,-150.0,0.000159,2]
[423230749,1779963039000,-150.0,0.000159,2]
[423230750,1779963039000,-150.0,0.000159,2]
[423230751,1779963039000,-300.0,0.00016,2]
[423230752,1779963039000,-4410.73307623,0.00016,2]
[423230753,1779963039000,-2000.0,0.00016,2]
[423230760,1779963039000,-227.21135545,0.000161,2]
[423230755,1779963039000,-200.0,0.00016,2]
[423230754,1779963039000,-227.21135545,0.00016,2]
[423230756,1779963039000,-3824.920678,0.0001601,2]
[423230759,1779963039000,-4410.73307623,0.000161,2]
[423230757,1779963039000,-539.09453516,0.00016096,2]
[423230793,1779963039000,-727.0,0.00016438,2]
[423230791,1779963039000,-727.0,0.00016438,2]
[423230790,1779963039000,-727.0,0.00016438,2]
[423230833,1779963039000,-150.0,0.00017921,2]
[423230845,1779963039000,-3549.0,0.00017921,2]
[423230844,1779963039000,-928.0,0.00017921,2]
[423230846,1779963039000,-1356.0,0.00017921,2]
[423230843,1779963039000,-150.0,0.00017921,2]
[423230848,1779963039000,-525.0,0.00017921,2]
[423230849,1779963039000,-1225.0,0.00017921,2]
[423230847,1779963039000,-1272.0,0.00017921,2]
[423230850,1779963039000,-167.89454848,0.00017987,7]
[423230841,1779963039000,-150.0,0.00017921,2]
[423230839,1779963039000,-150.0,0.00017921,2]
[423230835,1779963039000,-150.0,0.00017921,2]
[423230837,1779963039000,-150.0,0.00017921,2]
[423230852,1779963039000,-169.43,0.00018,2]
[423230853,1779963039000,-169.43,0.00018,2]
[423230854,1779963039000,-169.43,0.00018,2]
[423230851,1779963039000,-167.89454849,0.00017987,30]
[423230855,1779963039000,-350.0,0.00018,2]
[423230857,1779963039000,-1290.92873611,0.00018,2]
[423230856,1779963039000,-1738.81681799,0.00018,2]
[423230859,1779963039000,-713.226917,0.00018082,2]
[423230858,1779963039000,-200.0,0.00018,2]
[423230861,1779963039000,-2034.0,0.00018148,2]
[423230860,1779963039000,-665.47,0.000181,2]
[423230862,1779963039000,-379.0,0.00018148,2]
[423230865,1779963039000,-403.0,0.00018148,2]
[423230866,1779963039000,-1220.0,0.00018148,2]
[423230794,1779963039000,-727.0,0.00016438,2]
[423230864,1779963039000,-1136.0,0.00018148,2]
[423230823,1779963039000,-793.20442286,0.000177,2]
[423230828,1779963039000,-1239.59148304,0.0001789,2]
[423230863,1779963039000,-180.0,0.00018148,2]
[423230824,1779963039000,-3637.0,0.00017791,2]
[423230819,1779963039000,-167.89454849,0.00017463,30]
[423230796,1779963039000,-732.87213432,0.00016438,2]
[423230799,1779963039000,-1000.0,0.000165,2]
[423230797,1779963039000,-900.0,0.00016438,2]
[423230798,1779963039000,-6616.87961098,0.000165,2]
[423230800,1779963039000,-4410.73307623,0.000165,2]
[423230806,1779963039000,-180.0,0.00017148,2]
[423230801,1779963039000,-4410.73307623,0.000166,2]
[423230808,1779963039000,-403.0,0.00017148,2]
[423230807,1779963039000,-1136.0,0.00017148,2]
[423230811,1779963039000,-968.0,0.00017148,2]
[423230809,1779963039000,-1220.0,0.00017148,2]
[423230810,1779963039000,-214.0,0.00017148,2]
[423230812,1779963039000,-158.8477614,0.00017148,2]
[423230795,1779963039000,-727.0,0.00016438,2]
[423230805,1779963039000,-379.0,0.00017148,2]
[423230818,1779963039000,-167.89454848,0.00017463,7]
[423230815,1779963039000,-150.54,0.00017286,2]
[423230822,1779963039000,-535.0,0.0001766,2]
[423230820,1779963039000,-665.35,0.00017572,2]
[423230802,1779963039000,-245.61,0.000167,2]
[423230821,1779963039000,-9298.36,0.00017572,2]
[423230830,1779963039000,-150.0,0.00017921,2]
[423230817,1779963039000,-155.02,0.00017419,2]
[423230816,1779963039000,-2000.0,0.00017383,2]
[423230814,1779963039000,-1425.0,0.0001726,2]
[423230803,1779963039000,-168.1,0.00016712,2]
[423230804,1779963039000,-2034.0,0.00017148,2]
[423230813,1779963039000,-161.0,0.00017148,2]
[423230827,1779963039000,-6064.0,0.00017791,2]
[423230910,1779963040000,-500.0,0.00019178,2]
[423230908,1779963040000,-500.0,0.00019178,2]
[423230905,1779963040000,-500.0,0.00019178,2]
[423230904,1779963040000,-3000.0,0.00019178,2]
[423230906,1779963040000,-500.0,0.00019178,2]
[423230898,1779963040000,-1220.0,0.00019148,2]
[423230903,1779963040000,-910.0,0.0001915,2]
[423230901,1779963040000,-161.0,0.00019148,2]
[423230902,1779963040000,-935.0,0.0001915,2]
[423230900,1779963040000,-968.0,0.00019148,2]
[423230899,1779963040000,-214.0,0.00019148,2]
[423230907,1779963040000,-500.0,0.00019178,2]
[423230917,1779963040000,-500.0,0.00019178,2]
[423230918,1779963040000,-500.0,0.00019178,2]
[423230909,1779963040000,-500.0,0.00019178,2]
[423230912,1779963040000,-500.0,0.00019178,2]
[423230913,1779963040000,-500.0,0.00019178,2]
[423230920,1779963040000,-500.0,0.00019178,2]
[423230916,1779963040000,-500.0,0.00019178,2]
[423230915,1779963040000,-500.0,0.00019178,2]
[423230919,1779963040000,-500.0,0.00019178,2]
[423230914,1779963040000,-500.0,0.00019178,2]
[423230921,1779963040000,-500.0,0.00019178,2]
[423230923,1779963040000,-500.0,0.00019178,2]
[423230931,1779963040000,-500.0,0.00019178,2]
[423230925,1779963040000,-500.0,0.00019178,2]
[423230897,1779963040000,-403.0,0.00019148,2]
[423230911,1779963040000,-500.0,0.00019178,2]
[423230896,1779963040000,-1136.0,0.00019148,2]
[423230880,1779963040000,-167.89454848,0.00018511,7]
[423230895,1779963040000,-180.0,0.00019148,2]
[423230872,1779963040000,-176.23,0.00018356,2]
[423230869,1779963040000,-161.0,0.00018148,2]
[423230924,1779963040000,-500.0,0.00019178,2]
[423230871,1779963040000,-1290.92873611,0.000182,2]
[423230868,1779963040000,-968.0,0.00018148,2]
[423230867,1779963040000,-214.0,0.00018148,2]
[423230870,1779963040000,-1738.81681799,0.000182,2]
[423230874,1779963040000,-1290.92873611,0.000184,2]
[423230876,1779963040000,-935.0,0.00018465,2]
[423230884,1779963040000,-1738.81681799,0.000187,2]
[423230875,1779963040000,-2820.4,0.0001841,2]
[423230873,1779963040000,-1738.81681799,0.000184,2]
[423230878,1779963040000,-1738.81681799,0.000185,2]
[423230882,1779963040000,-500.0,0.00018512,2]
[423230881,1779963040000,-167.89454849,0.00018511,30]
[423230879,1779963040000,-1290.92873611,0.000185,2]
[423230877,1779963040000,-910.0,0.00018465,2]
[423230883,1779963040000,-266.79,0.00018512,2]
[423230885,1779963040000,-1290.92873611,0.000187,2]
[423230886,1779963040000,-215.50460005,0.00018834,2]
[423230887,1779963040000,-500.0,0.00018836,7]
[423230888,1779963040000,-245.61,0.000189,2]
[423230890,1779963040000,-723.12825122,0.00019,2]
[423230889,1779963040000,-163.12506766,0.00019,2]
[423230892,1779963040000,-2000.0,0.00019122,2]
[423230891,1779963040000,-175.98,0.00019083,2]
[423230893,1779963040000,-2034.0,0.00019148,2]
[423230894,1779963040000,-379.0,0.00019148,2]
[423230930,1779963040000,-500.0,0.00019178,2]
[423230999,1779963040000,-300.0,0.000201,10]
[423230926,1779963040000,-500.0,0.00019178,2]
[423230970,1779963040000,-598.0,0.0002,2]
[423230962,1779963040000,-371.0,0.00019835,2]
[423230961,1779963040000,-276.0,0.0001933,5]
[423230964,1779963040000,-1434.86,0.00019968,2]
[423230965,1779963040000,-2000.0,0.0002,7]
[423230966,1779963040000,-5284.10140603,0.0002,2]
[423230959,1779963040000,-2557.35,0.000192,2]
[423230963,1779963040000,-247.404731,0.00019835,2]
[423230969,1779963040000,-5885.80955307,0.0002,2]
[423230968,1779963040000,-2000.0,0.0002,2]
[423230967,1779963040000,-199.29868437,0.0002,2]
[423230977,1779963040000,-156.0,0.0002,2]
[423230975,1779963040000,-200.0,0.0002,10]
[423230979,1779963040000,-6555.0,0.0002,2]
[423230974,1779963040000,-2000.0,0.0002,2]
[423230973,1779963040000,-400.0,0.0002,2]
[423230981,1779963040000,-5162.64,0.0002,2]
[423230983,1779963040000,-200.0,0.0002,2]
[423230985,1779963040000,-500.0,0.0002,2]
[423230989,1779963040000,-2615.0,0.0002,2]
[423230993,1779963040000,-2000.0,0.0002001,2]
[423230987,1779963040000,-613.04222186,0.0002,2]
[423230991,1779963040000,-151.72681805,0.0002,20]
[423230995,1779963040000,-2000.0,0.0002002,2]
[423231001,1779963040000,-2034.0,0.00020148,2]
[423230997,1779963040000,-2881.803606,0.0002003,2]
[423230922,1779963040000,-500.0,0.00019178,2]
[423230971,1779963040000,-151.0,0.0002,2]
[423230960,1779963040000,-551.58,0.000192,2]
[423230972,1779963040000,-5433.31,0.0002,30]
[423230953,1779963040000,-250.0,0.00019178,2]
[423230927,1779963040000,-500.0,0.00019178,2]
[423230954,1779963040000,-250.0,0.00019178,2]
[423230928,1779963040000,-500.0,0.00019178,2]
[423230929,1779963040000,-500.0,0.00019178,2]
[423230932,1779963040000,-500.0,0.00019178,2]
[423230933,1779963040000,-500.0,0.00019178,2]
[423230934,1779963040000,-500.0,0.00019178,2]
[423230936,1779963040000,-500.0,0.00019178,2]
[423230935,1779963040000,-500.0,0.00019178,2]
[423230945,1779963040000,-500.0,0.00019178,2]
[423230943,1779963040000,-500.0,0.00019178,2]
[423230942,1779963040000,-500.0,0.00019178,2]
[423230939,1779963040000,-500.0,0.00019178,2]
[423230941,1779963040000,-500.0,0.00019178,2]
[423230938,1779963040000,-500.0,0.00019178,2]
[423230937,1779963040000,-500.0,0.00019178,2]
[423230950,1779963040000,-150.0,0.00019178,2]
[423230944,1779963040000,-500.0,0.00019178,2]
[423230957,1779963040000,-20428.09,0.00019178,2]
[423230956,1779963040000,-264.18629754,0.00019178,2]
[423230951,1779963040000,-150.0,0.00019178,2]
[423230955,1779963040000,-250.0,0.00019178,2]
[423230947,1779963040000,-500.0,0.00019178,2]
[423230952,1779963040000,-210.92564094,0.00019178,2]
[423230949,1779963040000,-150.0,0.00019178,2]
[423230948,1779963040000,-589.19632464,0.00019178,2]
[423230946,1779963040000,-500.0,0.00019178,2]
[423230940,1779963040000,-500.0,0.00019178,2]
[423230958,1779963040000,-1856.58,0.000192,2]
[423231048,1779963041000,-1136.0,0.00021148,2]
[423231043,1779963041000,-163.57588558,0.0002106,2]
[423231034,1779963041000,-150.0,0.00020921,2]
[423231046,1779963041000,-379.0,0.00021148,2]
[423231040,1779963041000,-1225.0,0.00020921,2]
[423231041,1779963041000,-156.0,0.00021,2]
[423231045,1779963041000,-2034.0,0.00021148,2]
[423231042,1779963041000,-500.0,0.00021028,7]
[423231039,1779963041000,-525.0,0.00020921,2]
[423231036,1779963041000,-3549.0,0.00020921,2]
[423231049,1779963041000,-403.0,0.00021148,2]
[423231044,1779963041000,-245.61,0.000211,2]
[423231051,1779963041000,-214.0,0.00021148,2]
[423231062,1779963041000,-151.0,0.00021178,2]
[423231047,1779963041000,-180.0,0.00021148,2]
[423231052,1779963041000,-968.0,0.00021148,2]
[423231054,1779963041000,-743.50770149,0.00021178,2]
[423231057,1779963041000,-151.0,0.00021178,2]
[423231059,1779963041000,-209.40437684,0.00021178,2]
[423231053,1779963041000,-161.0,0.00021148,2]
[423231060,1779963041000,-151.0,0.00021178,2]
[423231056,1779963041000,-151.0,0.00021178,2]
[423231063,1779963041000,-174.61919141,0.00021178,2]
[423231055,1779963041000,-200.0,0.00021178,2]
[423231061,1779963041000,-279.9045709,0.00021178,2]
[423231064,1779963041000,-578.20924308,0.00021178,2]
[423231032,1779963041000,-150.0,0.00020921,2]
[423231050,1779963041000,-1220.0,0.00021148,2]
[423231033,1779963041000,-150.0,0.00020921,2]
[423231006,1779963041000,-1136.0,0.00020148,2]
[423231031,1779963041000,-150.0,0.00020921,2]
[423231058,1779963041000,-151.0,0.00021178,2]
[423231007,1779963041000,-403.0,0.00020148,2]
[423231008,1779963041000,-1220.0,0.00020148,2]
[423231005,1779963041000,-180.0,0.00020148,2]
[423231011,1779963041000,-161.0,0.00020148,2]
[423231010,1779963041000,-968.0,0.00020148,2]
[423231012,1779963041000,-150.0,0.00020191,7]
[423231009,1779963041000,-214.0,0.00020148,2]
[423231003,1779963041000,-379.0,0.00020148,2]
[423231025,1779963041000,-150.54,0.00020743,2]
[423231024,1779963041000,-168.1,0.00020639,2]
[423231013,1779963041000,-2820.4,0.00020381,2]
[423231017,1779963041000,-150.0,0.0002058,2]
[423231035,1779963041000,-928.0,0.00020921,2]
[423231018,1779963041000,-150.0,0.0002058,2]
[423231016,1779963041000,-2850.44,0.00020548,2]
[423231021,1779963041000,-150.0,0.0002058,2]
[423231015,1779963041000,-4107.09,0.00020548,2]
[423231019,1779963041000,-150.0,0.0002058,2]
[423231022,1779963041000,-150.0,0.0002058,2]
[423231020,1779963041000,-150.0,0.0002058,2]
[423231038,1779963041000,-1272.0,0.00020921,2]
[423231027,1779963041000,-3159.22,0.00020791,2]
[423231026,1779963041000,-3637.0,0.00020791,2]
[423231037,1779963041000,-1356.0,0.00020921,2]
[423231029,1779963041000,-256.0,0.000209,5]
[423231028,1779963041000,-2000.0,0.0002086,2]
[423231030,1779963041000,-155.02,0.00020903,2]
[423231023,1779963041000,-169.01800728,0.0002058,2]
[423231067,1779963041000,-151.0,0.00021178,2]
[423231014,1779963041000,-167.27,0.00020511,2]
[423231065,1779963041000,-151.0,0.00021178,2]
[423231100,1779963041000,-500.0,0.00021178,2]
[423231102,1779963041000,-151.0,0.00021178,2]
[423231101,1779963041000,-151.0,0.00021178,2]
[423231110,1779963041000,-500.0,0.00021178,2]
[423231107,1779963041000,-151.0,0.00021178,2]
[423231104,1779963041000,-256.59241585,0.00021178,2]
[423231109,1779963041000,-152.0,0.00021178,2]
[423231108,1779963041000,-266.08633524,0.00021178,2]
[423231112,1779963041000,-151.0,0.00021178,2]
[423231111,1779963041000,-151.0,0.00021178,2]
[423231103,1779963041000,-152.0,0.00021178,2]
[423231105,1779963041000,-500.0,0.00021178,2]
[423231106,1779963041000,-151.0,0.00021178,2]
[423231092,1779963041000,-238.60871557,0.00021178,2]
[423231114,1779963041000,-500.0,0.00021178,2]
[423231125,1779963041000,-151.0,0.00021178,2]
[423231113,1779963041000,-275.93152964,0.00021178,2]
[423231115,1779963041000,-152.0,0.00021178,2]
[423231116,1779963041000,-151.0,0.00021178,2]
[423231117,1779963041000,-286.14099624,0.00021178,2]
[423231119,1779963041000,-151.0,0.00021178,2]
[423231118,1779963041000,-500.0,0.00021178,2]
[423231121,1779963041000,-151.0,0.00021178,2]
[423231120,1779963041000,-152.0,0.00021178,2]
[423231123,1779963041000,-500.0,0.00021178,2]
[423231122,1779963041000,-296.7282131,0.00021178,2]
[423231127,1779963041000,-151.0,0.00021178,2]
[423231066,1779963041000,-152.0,0.00021178,2]
[423231124,1779963041000,-151.0,0.00021178,2]
[423231096,1779963041000,-151.0,0.00021178,2]
[423231126,1779963041000,-277.48760411,0.00021178,2]
[423231093,1779963041000,-500.0,0.00021178,2]
[423231095,1779963041000,-9552.16786547,0.00021178,2]
[423231068,1779963041000,-152.0,0.00021178,2]
[423231069,1779963041000,-151.0,0.00021178,2]
[423231070,1779963041000,-151.0,0.00021178,2]
[423231071,1779963041000,-151.0,0.00021178,2]
[423231074,1779963041000,-1428.38747117,0.00021178,2]
[423231072,1779963041000,-152.0,0.00021178,2]
[423231073,1779963041000,-151.0,0.00021178,2]
[423231075,1779963041000,-152.0,0.00021178,2]
[423231085,1779963041000,-230.09519341,0.00021178,2]
[423231077,1779963041000,-500.0,0.00021178,2]
[423231082,1779963041000,-151.0,0.00021178,2]
[423231086,1779963041000,-500.0,0.00021178,2]
[423231078,1779963041000,-200.0,0.00021178,2]
[423231076,1779963041000,-221.88543241,0.00021178,2]
[423231084,1779963041000,-152.0,0.00021178,2]
[423231081,1779963041000,-2080.17592889,0.00021178,2]
[423231094,1779963041000,-200.0,0.00021178,2]
[423231097,1779963041000,-151.0,0.00021178,2]
[423231089,1779963041000,-721.12765534,0.00021178,2]
[423231091,1779963041000,-152.0,0.00021178,2]
[423231098,1779963041000,-152.0,0.00021178,2]
[423231088,1779963041000,-151.0,0.00021178,2]
[423231083,1779963041000,-151.0,0.00021178,2]
[423231087,1779963041000,-269.34833786,0.00021178,2]
[423231079,1779963041000,-209.40437684,0.00021178,2]
[423231080,1779963041000,-693.39197629,0.00021178,2]
[423231090,1779963041000,-151.0,0.00021178,2]
[423231099,1779963041000,-247.43723804,0.00021178,2]
[423231169,1779963042000,-5162.64,0.00021788,2]
[423231167,1779963042000,-151.0,0.00021728,2]
[423231166,1779963042000,-9905.59807649,0.00021726,2]
[423231168,1779963042000,-997.16350561,0.00021728,2]
[423231156,1779963042000,-771.01748644,0.00021726,2]
[423231164,1779963042000,-2157.14243826,0.00021726,2]
[423231159,1779963042000,-290.26104002,0.00021726,2]
[423231160,1779963042000,-181.08010149,0.00021726,2]
[423231158,1779963042000,-217.15233878,0.00021726,2]
[423231155,1779963042000,-961.58486558,0.00021673,2]
[423231165,1779963042000,-200.0,0.00021726,2]
[423231175,1779963042000,-160.0,0.00022,2]
[423231178,1779963042000,-165.15482607,0.00022,2]
[423231176,1779963042000,-300.0,0.00022,2]
[423231170,1779963042000,-5000.0,0.00021918,2]
[423231174,1779963042000,-210699.72428643,0.00022,4]
[423231177,1779963042000,-450.0,0.00022,2]
[423231171,1779963042000,-476.76,0.00021985,2]
[423231173,1779963042000,-263.23966577,0.00022,10]
[423231180,1779963042000,-387.11095282,0.00022148,2]
[423231179,1779963042000,-2049.69582111,0.00022148,2]
[423231184,1779963042000,-1227.41842051,0.00022148,2]
[423231181,1779963042000,-199.10654966,0.00022148,2]
[423231163,1779963042000,-217.15233878,0.00021726,2]
[423231182,1779963042000,-1143.37617276,0.00022148,2]
[423231172,1779963042000,-151.0,0.00021999,2]
[423231157,1779963042000,-200.0,0.00021726,2]
[423231139,1779963042000,-500.0,0.00021324,2]
[423231162,1779963042000,-200.0,0.00021726,2]
[423231183,1779963042000,-411.92725443,0.00022148,2]
[423231128,1779963042000,-151.0,0.00021178,2]
[423231129,1779963042000,-500.0,0.00021178,2]
[423231135,1779963042000,-151.0,0.00021233,2]
[423231130,1779963042000,-151.0,0.00021178,2]
[423231132,1779963042000,-180.86370417,0.00021178,2]
[423231131,1779963042000,-151.0,0.00021178,2]
[423231133,1779963042000,-500.0,0.00021178,2]
[423231134,1779963042000,-151.0,0.00021178,2]
[423231136,1779963042000,-719.04747942,0.00021233,2]
[423231137,1779963042000,-151.0,0.00021288,2]
[423231138,1779963042000,-745.65223615,0.00021288,2]
[423231150,1779963042000,-894.19061325,0.00021563,2]
[423231149,1779963042000,-151.0,0.00021563,2]
[423231140,1779963042000,-151.0,0.00021343,2]
[423231151,1779963042000,-151.0,0.00021618,2]
[423231152,1779963042000,-927.27566594,0.00021618,2]
[423231141,1779963042000,-773.24136889,0.00021343,2]
[423231142,1779963042000,-6474.79,0.0002137,2]
[423231145,1779963042000,-151.0,0.00021453,2]
[423231144,1779963042000,-801.85129954,0.00021398,2]
[423231147,1779963042000,-151.0,0.00021508,2]
[423231146,1779963042000,-831.51979762,0.00021453,2]
[423231148,1779963042000,-862.28603014,0.00021508,2]
[423231143,1779963042000,-151.0,0.00021398,2]
[423231154,1779963042000,-151.0,0.00021673,2]
[423231161,1779963042000,-1481.2378076,0.00021726,2]
[423231153,1779963042000,-476.76,0.00021625,2]
[423231185,1779963042000,-219.20398155,0.00022148,2]
[423231195,1779963042000,-225.18697532,0.00022274,2]
[423231190,1779963042000,-225.18697532,0.00022274,2]
[423231228,1779963042000,-200.0,0.00022822,2]
[423231230,1779963042000,-2319.72410669,0.00022822,2]
[423231231,1779963042000,-200.0,0.00022822,2]
[423231227,1779963042000,-1592.87721992,0.00022822,2]
[423231229,1779963042000,-233.5188934,0.00022822,2]
[423231242,1779963042000,-500.0,0.0002322,7]
[423231233,1779963042000,-10652.17309792,0.00022822,2]
[423231240,1779963042000,-151.0,0.00023,2]
[423231243,1779963042000,-330.0,0.00023308,4]
[423231235,1779963042000,-245.61,0.000229,7]
[423231237,1779963042000,-266.79,0.0002295,2]
[423231244,1779963042000,-2000.0,0.00023333,7]
[423231213,1779963042000,-943.92,0.0002272,2]
[423231245,1779963042000,-859.8060506,0.0002337,2]
[423231246,1779963042000,-200.0,0.0002337,2]
[423231247,1779963042000,-226.57528986,0.0002337,2]
[423231248,1779963042000,-201.93286098,0.0002337,2]
[423231250,1779963042000,-200.0,0.0002337,2]
[423231249,1779963042000,-1651.81367706,0.0002337,2]
[423231253,1779963042000,-200.0,0.0002337,2]
[423231186,1779963042000,-984.29192605,0.00022148,2]
[423231254,1779963042000,-11046.30350254,0.0002337,2]
[423231255,1779963042000,-5162.64,0.00023577,2]
[423231252,1779963042000,-2405.55389863,0.0002337,2]
[423231256,1779963042000,-3637.0,0.00023791,2]
[423231258,1779963042000,-599.60298507,0.00023917,2]
[423231257,1779963042000,-272.05636365,0.00023916,2]
[423231216,1779963042000,-943.92,0.00022722,2]
[423231251,1779963042000,-242.15909246,0.0002337,2]
[423231211,1779963042000,-943.92,0.0002272,2]
[423231215,1779963042000,-943.92,0.00022722,2]
[423231191,1779963042000,-301.0006985,0.00022274,2]
[423231189,1779963042000,-200.0,0.00022274,2]
[423231188,1779963042000,-799.54513344,0.00022274,2]
[423231192,1779963042000,-187.78006524,0.00022274,2]
[423231193,1779963042000,-1536.04360648,0.00022274,2]
[423231187,1779963042000,-178.87724896,0.00022148,2]
[423231196,1779963042000,-2236.95670847,0.00022274,2]
[423231198,1779963042000,-10272.10520532,0.00022274,2]
[423231203,1779963042000,-691.93,0.00022466,2]
[423231205,1779963042000,-761.58,0.00022466,2]
[423231204,1779963042000,-2175.25,0.00022466,2]
[423231199,1779963042000,-476.76,0.00022346,2]
[423231194,1779963042000,-200.0,0.00022274,2]
[423231206,1779963042000,-156.587,0.00022547,2]
[423231208,1779963042000,-943.92,0.00022718,2]
[423231226,1779963042000,-194.72792766,0.00022822,2]
[423231212,1779963042000,-943.92,0.0002272,2]
[423231214,1779963042000,-943.89,0.00022722,2]
[423231225,1779963042000,-312.13772435,0.00022822,2]
[423231209,1779963042000,-943.92,0.00022718,2]
[423231219,1779963042000,-829.12830338,0.00022822,2]
[423231223,1779963042000,-262.59836162,0.00022822,2]
[423231207,1779963042000,-476.77,0.00022706,2]
[423231201,1779963042000,-1096.42,0.00022466,2]
[423231197,1779963042000,-200.0,0.00022274,2]
[423231200,1779963042000,-2820.4,0.00022353,2]
[423231221,1779963042000,-200.0,0.00022822,2]
[423231284,1779963043000,-200.0,0.00024466,2]
[423231288,1779963043000,-11878.85235123,0.00024466,2]
[423231287,1779963043000,-200.0,0.00024466,2]
[423231286,1779963043000,-2586.85809042,0.00024466,2]
[423231285,1779963043000,-260.4103811,0.00024466,2]
[423231290,1779963043000,-188.59,0.00024658,2]
[423231296,1779963043000,-157.06,0.00024899,7]
[423231293,1779963043000,-157.06,0.00024658,2]
[423231295,1779963043000,-157.03,0.00024658,2]
[423231291,1779963043000,-594.43,0.00024658,2]
[423231299,1779963043000,-1130.45375195,0.00025,2]
[423231292,1779963043000,-1000.0,0.00024658,2]
[423231294,1779963043000,-500.0,0.00024658,7]
[423231300,1779963043000,-210.56846515,0.00025,2]
[423231297,1779963043000,-157.03,0.00024899,7]
[423231298,1779963043000,-500.0,0.000249,9]
[423231301,1779963043000,-1811.37446814,0.00025,2]
[423231308,1779963043000,-2233.05957326,0.00025,2]
[423231302,1779963043000,-1000.0,0.00025,2]
[423231274,1779963043000,-1272.0,0.00023921,2]
[423231289,1779963043000,-168.1,0.00024566,2]
[423231279,1779963043000,-2820.4,0.00024324,2]
[423231268,1779963043000,-11455.01673214,0.00023918,2]
[423231280,1779963043000,-364.9499305,0.00024466,2]
[423231305,1779963043000,-3088.4174624,0.00025,2]
[423231259,1779963043000,-747.80937859,0.00023917,2]
[423231261,1779963043000,-200.0,0.00023918,2]
[423231260,1779963043000,-891.61887448,0.00023918,2]
[423231265,1779963043000,-251.11897888,0.00023918,2]
[423231263,1779963043000,-1712.93078311,0.00023918,2]
[423231262,1779963043000,-209.40437684,0.00023918,2]
[423231269,1779963043000,-150.0,0.00023921,2]
[423231266,1779963043000,-2494.55939288,0.00023918,2]
[423231277,1779963043000,-500.0,0.00024,2]
[423231270,1779963043000,-150.0,0.00023921,2]
[423231267,1779963043000,-200.0,0.00023918,2]
[423231272,1779963043000,-3549.0,0.00023921,2]
[423231271,1779963043000,-928.0,0.00023921,2]
[423231282,1779963043000,-217.15233878,0.00024466,2]
[423231273,1779963043000,-1356.0,0.00023921,2]
[423231281,1779963043000,-200.0,0.00024466,2]
[423231283,1779963043000,-1776.30922209,0.00024466,2]
[423231275,1779963043000,-525.0,0.00023921,2]
[423231276,1779963043000,-1225.0,0.00023921,2]
[423231264,1779963043000,-200.0,0.00023918,2]
[423231304,1779963043000,-619.82909925,0.00025,2]
[423231278,1779963043000,-500.0,0.00024136,2]
[423231307,1779963043000,-7234.32424484,0.00025,2]
[423231330,1779963043000,-12318.36988822,0.00025014,2]
[423231332,1779963043000,-157.06,0.0002514,30]
[423231331,1779963043000,-157.14,0.0002514,30]
[423231335,1779963043000,-500.0,0.00025412,7]
[423231338,1779963043000,-233.5188934,0.00025562,2]
[423231334,1779963043000,-5162.64,0.00025365,7]